Workbook

Sheet MYP, MSS
B1: Antti Kurttila | E1: 1.8.2001 Kempele
B2: YKKÖSPESIS | E2: Runkosarja | L2: Runkosarja TOP-10 | Q2: Jatkosarjat | X2: SUOMENSARJA | AA2: Runkosarja | AH2: Runkosarja TOP-10 | AM2: Jatkosarjat
B3: Vuosi | C3: Sija | D3: Seura | E3: OTT | F3: KUN | G3: LÖI | H3: TOI | I3: KL | J3: KL-% | L3: LÖI | M3: TOI | N3: L+T | O3: KL | Q3: OTT | R3: KUN | S3: LÖI | T3: TOI | U3: KL | V3: KL-% | X3: Vuosi | Y3: Sija | Z3: Seura | AA3: OTT | AB3: KUN | AC3: LÖI | AD3: TOI | AE3: KL | AF3: KL-% | AH3: LÖI | AI3: TOI | AJ3: L+T | AK3: KL | AM3: OTT | AN3: KUN | AO3: LÖI | AP3: TOI | AQ3: KL | AR3: KL-%
X4: 2015 | Y4: 4. | Z4: KeKi 2 | AA4: 1 | AB4: 0 | AC4: 0 | AD4: 0 | AE4: 1 | AF4: 20.0 % | AG4: 5 | AM4: 2 | AN4: 0 | AO4: 1 | AP4: 1 | AQ4: 8 | AR4: 61.5 % | AS4: 13
X5: 2016 | Y5: 2. | Z5: KeKi 2 | AA5: 2 | AB5: 0 | AC5: 2 | AD5: 1 | AE5: 7 | AF5: 53.8 % | AG5: 13
X6: 2017 | Y6: 6. | Z6: KeKi 2 | AA6: 11 | AB6: 0 | AC6: 6 | AD6: 2 | AE6: 26 | AF6: 36.6 % | AG6: 71
X7: 2018 | Y7: 5. | Z7: KeKi 2 | AA7: 14 | AB7: 0 | AC7: 16 | AD7: 8 | AE7: 51 | AF7: 47.2 % | AG7: =PRODUCT(AE7/AF7) -> 108
B8: 2019 | C8: 10. | D8: SiKi | E8: 17 | F8: 0 | G8: 9 | H8: 4 | I8: 50 | J8: 51.5 % | K8: 97 | X8: 2019 | Y8: 5. | Z8: KeKi 2 | AA8: 3 | AB8: 0 | AC8: 6 | AD8: 1 | AE8: 13 | AF8: 50.0 % | AG8: 26
X9: 2020 | Y9: 1. | Z9: KeKi 2 | AA9: 1 | AB9: 0 | AC9: 1 | AD9: 0 | AE9: 4 | AF9: 36.4 % | AG9: 11
X10: 2021 | Y10: 4. | Z10: KeKi 2 | AA10: 9 | AB10: 0 | AC10: 9 | AD10: 5 | AE10: 26 | AF10: 51.0 % | AG10: 51
X11: 2022 | Y11: 9. | Z11: KeKi 2 | AA11: 9 | AB11: 1 | AC11: 10 | AD11: 7 | AE11: 41 | AF11: 62.1 % | AG11: 66
X12: 2023 | Y12: 2. | Z12: Tarmo | AA12: 16 | AB12: 1 | AC12: 25 | AD12: 8 | AE12: 62 | AF12: 56.9 % | AG12: 109 | AH12: 6. | AM12: 5 | AN12: 0 | AO12: 3 | AP12: 3 | AQ12: 22 | AR12: 66.7 % | AS12: 33
B13: YHTEENSÄ | E13: =SUM(E4:E12) -> 17 | F13: =SUM(F4:F12) -> 0 | G13: =SUM(G4:G12) -> 9 | H13: =SUM(H4:H12) -> 4 | I13: =SUM(I4:I12) -> 50 | J13: =PRODUCT(I13/K13) -> 51.5 % | K13: =SUM(K4:K12) -> 97 | Q13: =SUM(Q4:Q12) -> 0 | R13: =SUM(R4:R12) -> 0 | S13: =SUM(S4:S12) -> 0 | T13: =SUM(T4:T12) -> 0 | U13: =SUM(U4:U12) -> 0 | V13: 0.0 % | W13: =SUM(W4:W12) -> 0 | X13: YHTEENSÄ | AA13: =SUM(AA4:AA12) -> 66 | AB13: =SUM(AB4:AB12) -> 2 | AC13: =SUM(AC4:AC12) -> 75 | AD13: =SUM(AD4:AD12) -> 32 | AE13: =SUM(AE4:AE12) -> 231 | AF13: =PRODUCT(AE13/AG13) -> 50.2 % | AG13: =SUM(AG4:AG12) -> 460.0050826 | AM13: =SUM(AM4:AM12) -> 7 | AN13: =SUM(AN4:AN12) -> 0 | AO13: =SUM(AO4:AO12) -> 4 | AP13: =SUM(AP4:AP12) -> 4 | AQ13: =SUM(AQ4:AQ12) -> 30 | AR13: =PRODUCT(AQ13/AS13) -> 65.2 % | AS13: =SUM(AS4:AS12) -> 46
B15: KAIKKI OTTELUT | E15: OTT | F15: KUN | G15: LÖI | H15: TOI | I15: KL | J15: KL-% | L15: ka/L | M15: ka/T | N15: ka/l+t | O15: ka/kl | R15: Seurat | T15: KeKi = Kempeleen Kiri (1915), kasvattajaseura
B16: SUPERPESIS | E16: 0 | F16: 0 | G16: 0 | H16: 0 | I16: 0 | J16: 0.0 % | K16: 0 | L16: 0.00 | M16: 0.00 | N16: 0.00 | O16: 0.00 | T16: SiKi = Simon Kiri (1926)
B17: YKKÖSPESIS | E17: =PRODUCT(E13+Q13) -> 17 | F17: =PRODUCT(F13+R13) -> 0 | G17: =PRODUCT(G13+S13) -> 9 | H17: =PRODUCT(H13+T13) -> 4 | I17: =PRODUCT(I13+U13) -> 50 | J17: =PRODUCT(I17/K17) -> 51.5 % | K17: =PRODUCT(K13+W13) -> 97 | L17: =PRODUCT((F17+G17)/E17) -> 0.53 | M17: =PRODUCT(H17/E17) -> 0.24 | N17: =PRODUCT((F17+G17+H17)/E17) -> 0.76 | O17: =PRODUCT(I17/E17) -> 2.94 | T17: Tarmo = Ikaalisten Tarmo (1908)
B18: SUOMENSARJA | E18: =PRODUCT(AA13+AM13) -> 73 | F18: =PRODUCT(AB13+AN13) -> 2 | G18: =PRODUCT(AC13+AO13) -> 79 | H18: =PRODUCT(AD13+AP13) -> 36 | I18: =PRODUCT(AE13+AQ13) -> 261 | J18: =PRODUCT(I18/K18) -> 51.6 % | K18: =PRODUCT(AG13+AS13) -> 506.0050826 | L18: =PRODUCT((F18+G18)/E18) -> 1.11 | M18: =PRODUCT(H18/E18) -> 0.49 | N18: =PRODUCT((F18+G18+H18)/E18) -> 1.60 | O18: =PRODUCT(I18/E18) -> 3.58
B19: YHTEENSÄ | E19: =SUM(E16:E18) -> 90 | F19: =SUM(F16:F18) -> 2 | G19: 88 | H19: 40 | I19: 311 | J19: =PRODUCT(I19/K19) -> 51.6 % | K19: =SUM(K16:K18) -> 603.0050826 | L19: =PRODUCT((F19+G19)/E19) -> 1.00 | M19: =PRODUCT(H19/E19) -> 0.44 | N19: =PRODUCT((F19+G19+H19)/E19) -> 1.44 | O19: =PRODUCT(I19/E19) -> 3.46

Sheet Arvo-ottelut
B1: ITÄ - LÄNSI - KORTTI
B2: Antti Kurttila | C2: 1.8.2001 Kempele
B3: B-POJAT | C3: Itä - Länsi, tulos | D3: Joukkue | E3: Seura | G3: V | H3: T | I3: H | J3: Up. | K3: Lj. | L3: Palk. | M3: O | N3: K | O3: L | P3: T | Q3: KL | R3: 1 | S3: 2 | T3: 3 | U3: k | V3: KL-% | W3: Pelinjohtaja | X3: Yleisöä
B4: 05.07. 2019 Seinäjoki | C4: 2-0 (6-3, 3-2) | D4: Itä | E4: KeKi | G4: 1 | J4: 3k | K4: 5 | M4: 1 | Q4: 2/4 | R4: 0/1 | T4: 2/2 | U4: 0/1 | V4: 50.0 % | W4: Jussi-Pekka Tanskanen | X4: 1153
